[Event "*** Titled Tuesday Blitz"]
[Site "Chess.com"]
[Date "2020.05.12"]
[Round "4"]
[White "Grandelicious"]
[Black "pedromartinez91"]
[Result "1-0"]
[WhiteElo "2744"]
[BlackElo "2507"]
[TimeControl "180+1"]
[EndTime "10:39:02 PDT"]
[Termination "Grandelicious won by resignation"]

1. Nf3 {[%clk 0:03:00.9]} 1... e6 {[%clk 0:02:59.9]} 2. g3 {[%clk 0:03:00.7]}
2... Nf6 {[%clk 0:03:00.3]} 3. Bg2 {[%clk 0:03:01.2]} 3... b6 {[%clk 0:03:00.9]}
4. O-O {[%clk 0:03:00.9]} 4... Bb7 {[%clk 0:03:01.2]} 5. c4 {[%clk 0:03:01.4]}
5... Be7 {[%clk 0:03:01.7]} 6. Nc3 {[%clk 0:03:01]} 6... O-O {[%clk 0:03:01.9]}
7. d4 {[%clk 0:02:59.5]} 7... Na6 {[%clk 0:03:00.5]} 8. d5 {[%clk 0:02:57.8]}
8... Bb4 {[%clk 0:02:59.7]} 9. Bg5 {[%clk 0:02:35.7]} 9... Bxc3 {[%clk
0:02:57.5]} 10. bxc3 {[%clk 0:02:36.6]} 10... h6 {[%clk 0:02:56.9]} 11. Bxf6
{[%clk 0:02:18.4]} 11... Qxf6 {[%clk 0:02:57.8]} 12. Nd4 {[%clk 0:02:19]} 12...
Nc5 {[%clk 0:02:37.9]} 13. e4 {[%clk 0:02:18.5]} 13... Ba6 {[%clk 0:02:26.5]}
14. Qe2 {[%clk 0:02:12.9]} 14... exd5 {[%clk 0:02:24.5]} 15. e5 {[%clk
0:02:10.1]} 15... Qe7 {[%clk 0:02:07.4]} 16. Bxd5 {[%clk 0:02:03.8]} 16... Rae8
{[%clk 0:02:05.3]} 17. f4 {[%clk 0:02:04.1]} 17... c6 {[%clk 0:02:05.7]} 18. Nf5
{[%clk 0:02:01.4]} 18... cxd5 {[%clk 0:01:57.4]} 19. Nxe7+ {[%clk 0:01:59.7]}
19... Rxe7 {[%clk 0:01:56.1]} 20. Rfd1 {[%clk 0:01:55.5]} 20... Bxc4 {[%clk
0:01:56.2]} 21. Qf3 {[%clk 0:01:51.4]} 21... f6 {[%clk 0:01:50.5]} 22. Rxd5
{[%clk 0:01:43.8]} 22... Bxd5 {[%clk 0:01:48.2]} 23. Qxd5+ {[%clk 0:01:44.7]}
23... Kh8 {[%clk 0:01:48.1]} 24. Re1 {[%clk 0:01:31.8]} 24... Rfe8 {[%clk
0:01:42.3]} 25. Kg2 {[%clk 0:01:31.3]} 25... Re6 {[%clk 0:01:34.5]} 26. h4
{[%clk 0:01:27]} 26... d6 {[%clk 0:01:31.8]} 27. f5 {[%clk 0:01:19.7]} 27...
Rxe5 {[%clk 0:01:28.1]} 28. Rxe5 {[%clk 0:01:19.9]} 28... dxe5 {[%clk 0:01:24]}
29. Qf7 {[%clk 0:01:19.1]} 29... Rd8 {[%clk 0:01:15.4]} 30. Qxa7 {[%clk
0:01:18.8]} 30... Rd2+ {[%clk 0:01:11.2]} 31. Kf3 {[%clk 0:01:05.3]} 31... Rd3+
{[%clk 0:00:54.2]} 32. Kg4 {[%clk 0:00:56]} 32... Kh7 {[%clk 0:00:41.2]} 33.
Qxb6 {[%clk 0:00:52.9]} 33... h5+ {[%clk 0:00:37.8]} 34. Kxh5 {[%clk 0:00:36.3]}
34... Ne4 {[%clk 0:00:37.7]} 35. Qb4 {[%clk 0:00:33.6]} 35... Re3 {[%clk
0:00:16.2]} 36. a4 {[%clk 0:00:24.5]} 36... Nxg3+ {[%clk 0:00:13.4]} 37. Kg4
{[%clk 0:00:24.8]} 37... Ne4 {[%clk 0:00:11.9]} 38. h5 {[%clk 0:00:24.4]} 38...
Rg3+ {[%clk 0:00:11.8]} 39. Kh4 {[%clk 0:00:24.8]} 39... Re3 {[%clk 0:00:09.3]}
40. a5 {[%clk 0:00:25.2]} 40... Ng5 {[%clk 0:00:09.5]} 41. a6 {[%clk 0:00:24.4]}
41... e4 {[%clk 0:00:07.6]} 42. a7 {[%clk 0:00:20.6]} 42... Kh6 {[%clk
0:00:07.3]} 43. a8=Q {[%clk 0:00:19.8]} 43... Rh3+ {[%clk 0:00:07.8]} 44. Kg4
{[%clk 0:00:20.2]} 44... Rxh5 {[%clk 0:00:04.7]} 1-0

[Event "*** Titled Tuesday Blitz"]
[Site "Chess.com"]
[Date "2020.05.12"]
[Round "4"]
[White "GjakanTati"]
[Black "Majesth"]
[Result "1-0"]
[WhiteElo "2640"]
[BlackElo "2460"]
[TimeControl "180+1"]
[EndTime "10:39:02 PDT"]
[Termination "GjakanTati won on time"]

1. d4 {[%clk 0:02:58.4]} 1... e6 {[%clk 0:02:59.3]} 2. c4 {[%clk 0:02:54.2]}
2... Bb4+ {[%clk 0:02:58.7]} 3. Bd2 {[%clk 0:02:52.6]} 3... c5 {[%clk
0:02:59.2]} 4. Nf3 {[%clk 0:02:49.7]} 4... Nf6 {[%clk 0:02:58.4]} 5. Bxb4 {[%clk
0:02:43.6]} 5... cxb4 {[%clk 0:02:59.3]} 6. Nbd2 {[%clk 0:02:44.4]} 6... O-O
{[%clk 0:02:54.8]} 7. e4 {[%clk 0:02:43.9]} 7... d5 {[%clk 0:02:54.3]} 8. e5
{[%clk 0:02:38.1]} 8... Ne4 {[%clk 0:02:44.9]} 9. cxd5 {[%clk 0:02:22.1]} 9...
exd5 {[%clk 0:02:45.8]} 10. Bd3 {[%clk 0:02:20.2]} 10... Nxd2 {[%clk 0:02:37.4]}
11. Qxd2 {[%clk 0:02:19.9]} 11... Nc6 {[%clk 0:02:37.5]} 12. h3 {[%clk
0:02:15.3]} 12... h6 {[%clk 0:02:25.4]} 13. O-O {[%clk 0:02:15.2]} 13... Be6
{[%clk 0:02:18.5]} 14. Rac1 {[%clk 0:02:11.5]} 14... Qd7 {[%clk 0:02:17.1]} 15.
Bb1 {[%clk 0:02:04.4]} 15... Bf5 {[%clk 0:02:13.6]} 16. Nh4 {[%clk 0:01:43.7]}
16... Bxb1 {[%clk 0:01:58]} 17. Rxb1 {[%clk 0:01:44.6]} 17... g5 {[%clk
0:01:40.4]} 18. Nf3 {[%clk 0:01:35.4]} 18... Qf5 {[%clk 0:01:40.1]} 19. Rbc1
{[%clk 0:01:34.1]} 19... Rac8 {[%clk 0:01:38.5]} 20. Rc5 {[%clk 0:01:32.4]}
20... Nxe5 {[%clk 0:01:13.1]} 21. Nxe5 {[%clk 0:01:24.5]} 21... Rxc5 {[%clk
0:01:12.5]} 22. dxc5 {[%clk 0:01:08.1]} 22... Qxe5 {[%clk 0:01:12.1]} 23. Qxb4
{[%clk 0:01:09]} 23... Qc7 {[%clk 0:00:56.6]} 24. Qd4 {[%clk 0:00:58.6]} 24...
Re8 {[%clk 0:00:31.7]} 25. b4 {[%clk 0:00:52]} 25... Qe5 {[%clk 0:00:29.7]} 26.
Qd3 {[%clk 0:00:49.4]} 26... Qe4 {[%clk 0:00:27.2]} 27. Qb5 {[%clk 0:00:45.3]}
27... d4 {[%clk 0:00:26.5]} 28. Rd1 {[%clk 0:00:40.2]} 28... a6 {[%clk
0:00:25.7]} 29. Qd7 {[%clk 0:00:37.6]} 29... d3 {[%clk 0:00:17.4]} 30. Rxd3
{[%clk 0:00:34.6]} 30... Qe1+ {[%clk 0:00:16.4]} 31. Kh2 {[%clk 0:00:34.8]}
31... Re2 {[%clk 0:00:13.4]} 32. Qd8+ {[%clk 0:00:23.3]} 32... Kg7 {[%clk
0:00:11.7]} 33. Qd4+ {[%clk 0:00:22.6]} 33... Kg6 {[%clk 0:00:07]} 34. Rf3
{[%clk 0:00:22.8]} 34... Re6 {[%clk 0:00:04.9]} 35. Qh8 {[%clk 0:00:20.9]} 35...
Qe4 {[%clk 0:00:03.6]} 36. Qg8+ {[%clk 0:00:20]} 36... Kh5 {[%clk 0:00:03.5]}
37. Qxf7+ {[%clk 0:00:20]} 37... Qg6 {[%clk 0:00:04.1]} 38. Qxb7 {[%clk
0:00:15.1]} 38... Qe4 {[%clk 0:00:01.4]} 39. Qc7 {[%clk 0:00:14.4]} 1-0

[Event "*** Titled Tuesday Blitz"]
[Site "Chess.com"]
[Date "2020.05.12"]
[Round "4"]
[White "yamalchess"]
[Black "anon102030"]
[Result "0-1"]
[WhiteElo "2507"]
[BlackElo "2738"]
[TimeControl "180+1"]
[EndTime "10:39:03 PDT"]
[Termination "anon102030 won on time"]

1. d4 {[%clk 0:03:00.9]} 1... Nf6 {[%clk 0:02:58.2]} 2. c4 {[%clk 0:03:01]} 2...
e5 {[%clk 0:02:58.2]} 3. dxe5 {[%clk 0:02:59.9]} 3... Ng4 {[%clk 0:02:58.7]} 4.
Nh3 {[%clk 0:03:00]} 4... Nxe5 {[%clk 0:02:58]} 5. e3 {[%clk 0:02:54.5]} 5...
Ng6 {[%clk 0:02:56.2]} 6. Qh5 {[%clk 0:02:41.3]} 6... d6 {[%clk 0:02:54.5]} 7.
Nc3 {[%clk 0:02:38.9]} 7... Nc6 {[%clk 0:02:42.9]} 8. Be2 {[%clk 0:02:38.7]}
8... Nge5 {[%clk 0:02:37.3]} 9. f4 {[%clk 0:02:10.7]} 9... g6 {[%clk 0:02:21.8]}
10. Qg5 {[%clk 0:02:10.7]} 10... Be7 {[%clk 0:02:16.5]} 11. Qh6 {[%clk 0:02:10]}
11... Bf8 {[%clk 0:01:28.7]} 12. Qg5 {[%clk 0:02:09.9]} 12... f6 {[%clk
0:01:28.7]} 13. Qg3 {[%clk 0:02:09]} 13... Nf7 {[%clk 0:01:28.5]} 14. O-O {[%clk
0:02:05.2]} 14... Bg7 {[%clk 0:01:25.5]} 15. Bd3 {[%clk 0:01:54.9]} 15... f5
{[%clk 0:01:24.7]} 16. Bd2 {[%clk 0:01:51.8]} 16... O-O {[%clk 0:01:23.6]} 17.
Rae1 {[%clk 0:01:50.7]} 17... Be6 {[%clk 0:01:20.8]} 18. b3 {[%clk 0:01:49.2]}
18... Qd7 {[%clk 0:01:05.7]} 19. Nf2 {[%clk 0:01:23.5]} 19... Rae8 {[%clk
0:01:05.4]} 20. Nd5 {[%clk 0:01:14.6]} 20... Bxd5 {[%clk 0:01:02.4]} 21. cxd5
{[%clk 0:01:13.9]} 21... Ne7 {[%clk 0:01:03.3]} 22. Qf3 {[%clk 0:01:10.4]} 22...
Nh6 {[%clk 0:00:58.6]} 23. a4 {[%clk 0:01:06.2]} 23... c6 {[%clk 0:00:54.5]} 24.
Bc4 {[%clk 0:00:49.8]} 24... Kh8 {[%clk 0:00:52.4]} 25. h3 {[%clk 0:00:42]}
25... Nhg8 {[%clk 0:00:50.9]} 26. Bb4 {[%clk 0:00:37.5]} 26... Nf6 {[%clk
0:00:50.1]} 27. dxc6 {[%clk 0:00:35.6]} 27... bxc6 {[%clk 0:00:51]} 28. Rd1
{[%clk 0:00:32.6]} 28... d5 {[%clk 0:00:51]} 29. Be2 {[%clk 0:00:30.1]} 29...
Rb8 {[%clk 0:00:48.8]} 30. Nd3 {[%clk 0:00:24.3]} 30... Ne4 {[%clk 0:00:46]} 31.
Nc5 {[%clk 0:00:13.6]} 31... Nxc5 {[%clk 0:00:44.2]} 32. Bxc5 {[%clk 0:00:13.4]}
32... Rxb3 {[%clk 0:00:45.1]} 33. Rb1 {[%clk 0:00:13.4]} 33... Rfb8 {[%clk
0:00:44.2]} 34. Rxb3 {[%clk 0:00:12.7]} 34... Rxb3 {[%clk 0:00:45.1]} 35. g4
{[%clk 0:00:11.9]} 35... Qe6 {[%clk 0:00:42.8]} 36. Rc1 {[%clk 0:00:08.4]} 36...
Rb7 {[%clk 0:00:27.5]} 37. Kf2 {[%clk 0:00:07.6]} 37... h6 {[%clk 0:00:26.6]}
38. Rg1 {[%clk 0:00:06.1]} 38... a5 {[%clk 0:00:25.2]} 39. g5 {[%clk 0:00:03.9]}
39... h5 {[%clk 0:00:24.9]} 40. Rc1 {[%clk 0:00:03.8]} 40... Nc8 {[%clk
0:00:20.7]} 41. Bd3 {[%clk 0:00:02.8]} 41... Rb3 {[%clk 0:00:20.2]} 42. Qe2
{[%clk 0:00:01.4]} 42... Nd6 {[%clk 0:00:18]} 0-1

[Event "*** Titled Tuesday Blitz"]
[Site "Chess.com"]
[Date "2020.05.12"]
[Round "4"]
[White "OMGCovid-19"]
[Black "MarcoCorvi"]
[Result "1-0"]
[WhiteElo "1923"]
[BlackElo "2183"]
[TimeControl "180+1"]
[EndTime "10:39:03 PDT"]
[Termination "OMGCovid-19 won on time"]

1. d4 {[%clk 0:03:00.9]} 1... f5 {[%clk 0:02:59]} 2. e4 {[%clk 0:02:59.4]} 2...
fxe4 {[%clk 0:02:57.7]} 3. Nc3 {[%clk 0:02:59.4]} 3... Nf6 {[%clk 0:02:57.3]} 4.
f3 {[%clk 0:02:59.6]} 4... d5 {[%clk 0:02:52.1]} 5. fxe4 {[%clk 0:02:53.1]} 5...
dxe4 {[%clk 0:02:53]} 6. Bc4 {[%clk 0:02:52.8]} 6... Bf5 {[%clk 0:02:52]} 7.
Nge2 {[%clk 0:02:51.3]} 7... Nbd7 {[%clk 0:02:49.4]} 8. O-O {[%clk 0:02:51.1]}
8... e6 {[%clk 0:02:32.2]} 9. Nf4 {[%clk 0:02:46.7]} 9... Qe7 {[%clk 0:02:20.9]}
10. Nb5 {[%clk 0:02:12.7]} 10... O-O-O {[%clk 0:01:58.8]} 11. Nxa7+ {[%clk
0:02:08.9]} 11... Kb8 {[%clk 0:01:57.3]} 12. Nb5 {[%clk 0:02:08.7]} 12... g5
{[%clk 0:01:51.1]} 13. Nh5 {[%clk 0:02:05.8]} 13... Bg4 {[%clk 0:01:46.5]} 14.
Qe1 {[%clk 0:01:44.7]} 14... Bxh5 {[%clk 0:01:43.5]} 15. Qa5 {[%clk 0:01:44.3]}
15... Nb6 {[%clk 0:01:38]} 16. Qa7+ {[%clk 0:01:42.2]} 16... Kc8 {[%clk
0:01:37.9]} 17. Bxg5 {[%clk 0:01:36.9]} 17... Bg7 {[%clk 0:01:33.6]} 18. Bb3
{[%clk 0:01:08.1]} 18... h6 {[%clk 0:01:19.4]} 19. Bf4 {[%clk 0:01:04]} 19...
Nfd5 {[%clk 0:01:10.2]} 20. Bg3 {[%clk 0:01:00.4]} 20... c6 {[%clk 0:00:59.4]}
21. Qb8+ {[%clk 0:00:24.6]} 21... Kd7 {[%clk 0:00:58.8]} 22. Qxb7+ {[%clk
0:00:24.5]} 22... Ke8 {[%clk 0:00:53.3]} 23. Qxc6+ {[%clk 0:00:23.6]} 23... Rd7
{[%clk 0:00:45.5]} 24. c4 {[%clk 0:00:11.4]} 24... e5 {[%clk 0:00:25.3]} 25.
cxd5 {[%clk 0:00:10.2]} 25... exd4 {[%clk 0:00:17.3]} 26. Nd6+ {[%clk
0:00:09.8]} 26... Kd8 {[%clk 0:00:14.3]} 27. Qxb6+ {[%clk 0:00:09.5]} 27... Rc7
{[%clk 0:00:14.6]} 28. Nb7+ {[%clk 0:00:08.8]} 28... Kc8 {[%clk 0:00:14.2]} 29.
d6 {[%clk 0:00:08.4]} 29... Rxb7 {[%clk 0:00:06.5]} 30. Qc5+ {[%clk 0:00:08.4]}
30... Kb8 {[%clk 0:00:05.4]} 31. dxe7+ {[%clk 0:00:07.9]} 31... Ka8 {[%clk
0:00:05.8]} 32. Qc6 {[%clk 0:00:06.7]} 32... Rf8 {[%clk 0:00:05.1]} 33. exf8=Q+
{[%clk 0:00:05.2]} 33... Ka7 {[%clk 0:00:03.6]} 34. Qa4+ {[%clk 0:00:03.9]}
34... Kb6 {[%clk 0:00:02.3]} 35. Qab4+ {[%clk 0:00:03.7]} 35... Kc6 {[%clk
0:00:01.8]} 36. Qxb7+ {[%clk 0:00:04.1]} 1-0

[Event "*** Titled Tuesday Blitz"]
[Site "Chess.com"]
[Date "2020.05.12"]
[Round "4"]
[White "ZarinaShafigullina"]
[Black "adriangschnitzer"]
[Result "0-1"]
[WhiteElo "2312"]
[BlackElo "2496"]
[TimeControl "180+1"]
[EndTime "10:39:04 PDT"]
[Termination "adriangschnitzer won on time"]

1. d4 {[%clk 0:03:00.9]} 1... Nf6 {[%clk 0:02:59.6]} 2. Nf3 {[%clk 0:03:01.8]}
2... d5 {[%clk 0:02:59.5]} 3. g3 {[%clk 0:03:02.7]} 3... c5 {[%clk 0:02:59.1]}
4. Bg2 {[%clk 0:03:02.1]} 4... cxd4 {[%clk 0:02:59.2]} 5. O-O {[%clk 0:03:02.4]}
5... Nc6 {[%clk 0:02:58.4]} 6. Nxd4 {[%clk 0:03:03.1]} 6... g6 {[%clk
0:02:57.4]} 7. c4 {[%clk 0:03:02.3]} 7... e6 {[%clk 0:02:55.2]} 8. cxd5 {[%clk
0:03:01]} 8... exd5 {[%clk 0:02:53.8]} 9. Nc3 {[%clk 0:03:00.3]} 9... Bg7 {[%clk
0:02:52.6]} 10. Nb3 {[%clk 0:02:48.9]} 10... Be6 {[%clk 0:02:40.6]} 11. Nc5
{[%clk 0:02:47.4]} 11... b6 {[%clk 0:02:40.5]} 12. Nxe6 {[%clk 0:02:46.7]} 12...
fxe6 {[%clk 0:02:41.4]} 13. e4 {[%clk 0:02:47.3]} 13... dxe4 {[%clk 0:02:24.3]}
14. Nxe4 {[%clk 0:02:44.6]} 14... Nxe4 {[%clk 0:02:16.9]} 15. Bxe4 {[%clk
0:02:43.3]} 15... Qxd1 {[%clk 0:02:08.3]} 16. Rxd1 {[%clk 0:02:18.7]} 16... Rc8
{[%clk 0:02:08.5]} 17. Rb1 {[%clk 0:01:39.3]} 17... O-O {[%clk 0:02:05]} 18. Be3
{[%clk 0:01:38.9]} 18... Nb4 {[%clk 0:01:45.4]} 19. Rd7 {[%clk 0:00:54.1]} 19...
Rf7 {[%clk 0:01:34.7]} 20. Rd6 {[%clk 0:00:49.7]} 20... Nxa2 {[%clk 0:01:23.6]}
21. Rxe6 {[%clk 0:00:49.4]} 21... Nb4 {[%clk 0:01:23.5]} 22. Bd2 {[%clk
0:00:39.2]} 22... Nc2 {[%clk 0:01:01.6]} 23. Bd5 {[%clk 0:00:25.9]} 23... Kh8
{[%clk 0:01:00.5]} 24. Rc1 {[%clk 0:00:18.3]} 24... Rd7 {[%clk 0:00:57.2]} 25.
Rxc2 {[%clk 0:00:06.7]} 25... Rxc2 {[%clk 0:00:44.2]} 26. Re8+ {[%clk
0:00:06.4]} 26... Bf8 {[%clk 0:00:44.2]} 27. Bc3+ {[%clk 0:00:03.2]} 27... Rxc3
{[%clk 0:00:42.9]} 28. Rxf8+ {[%clk 0:00:01.2]} 28... Kg7 {[%clk 0:00:42.1]} 29.
Rg8+ {[%clk 0:00:01.4]} 29... Kf6 {[%clk 0:00:42.3]} 30. bxc3 {[%clk 0:00:02.1]}
30... Rxd5 {[%clk 0:00:42.2]} 31. Ra8 {[%clk 0:00:02.3]} 31... a5 {[%clk
0:00:37.4]} 32. Rb8 {[%clk 0:00:01.8]} 32... Rb5 {[%clk 0:00:26.4]} 33. c4
{[%clk 0:00:01.9]} 33... Rb4 {[%clk 0:00:26.6]} 34. Kg2 {[%clk 0:00:02.6]} 34...
Ke5 {[%clk 0:00:26.8]} 35. f4+ {[%clk 0:00:02.4]} 35... Kd4 {[%clk 0:00:26.9]}
36. Rb7 {[%clk 0:00:03]} 36... Kxc4 {[%clk 0:00:26.7]} 37. Rxh7 {[%clk
0:00:03.7]} 37... a4 {[%clk 0:00:27.1]} 38. Rg7 {[%clk 0:00:04]} 38... a3 {[%clk
0:00:26.8]} 39. Ra7 {[%clk 0:00:03.2]} 39... Kb3 {[%clk 0:00:26.2]} 40. h4
{[%clk 0:00:01.7]} 40... Ra4 {[%clk 0:00:26.4]} 41. Rb7 {[%clk 0:00:01.7]} 41...
Ra6 {[%clk 0:00:24.4]} 0-1

[Event "*** Titled Tuesday Blitz"]
[Site "Chess.com"]
[Date "2020.05.12"]
[Round "4"]
[White "EddieMarsalla"]
[Black "Bulldog167"]
[Result "0-1"]
[WhiteElo "2526"]
[BlackElo "2834"]
[TimeControl "180+1"]
[EndTime "10:39:06 PDT"]
[Termination "Bulldog167 won by resignation"]

1. d4 {[%clk 0:03:00.9]} 1... Nf6 {[%clk 0:02:59.7]} 2. Bg5 {[%clk 0:03:01.2]}
2... c5 {[%clk 0:02:59.4]} 3. d5 {[%clk 0:03:00.3]} 3... d6 {[%clk 0:02:58.6]}
4. Nc3 {[%clk 0:02:53.4]} 4... h6 {[%clk 0:02:57.7]} 5. Bxf6 {[%clk 0:02:52.9]}
5... exf6 {[%clk 0:02:57.8]} 6. g3 {[%clk 0:02:53.8]} 6... g6 {[%clk 0:02:57.7]}
7. Bg2 {[%clk 0:02:54]} 7... Bg7 {[%clk 0:02:57.9]} 8. e3 {[%clk 0:02:54]} 8...
h5 {[%clk 0:02:54.5]} 9. h4 {[%clk 0:02:52.5]} 9... O-O {[%clk 0:02:54.2]} 10.
Nge2 {[%clk 0:02:51.6]} 10... Bg4 {[%clk 0:02:45.5]} 11. Qd2 {[%clk 0:02:51.1]}
11... Bxe2 {[%clk 0:02:45]} 12. Nxe2 {[%clk 0:02:50.8]} 12... f5 {[%clk
0:02:45.3]} 13. c3 {[%clk 0:02:51]} 13... Nd7 {[%clk 0:02:45]} 14. O-O {[%clk
0:02:47.8]} 14... b5 {[%clk 0:02:41.7]} 15. Nf4 {[%clk 0:02:33.8]} 15... a5
{[%clk 0:02:41.2]} 16. a3 {[%clk 0:02:30.1]} 16... a4 {[%clk 0:02:40.9]} 17.
Rfe1 {[%clk 0:02:27.6]} 17... Ne5 {[%clk 0:02:40.7]} 18. Nd3 {[%clk 0:02:22.8]}
18... Nc4 {[%clk 0:02:39.7]} 19. Qc2 {[%clk 0:02:23.1]} 19... Qf6 {[%clk
0:02:37.2]} 20. e4 {[%clk 0:02:18.3]} 20... fxe4 {[%clk 0:02:35]} 21. Rxe4
{[%clk 0:02:19.2]} 21... Bh6 {[%clk 0:02:28]} 22. Nf4 {[%clk 0:01:39.2]} 22...
Rae8 {[%clk 0:01:49.9]} 23. Rae1 {[%clk 0:01:35.5]} 23... Rxe4 {[%clk
0:01:48.9]} 24. Rxe4 {[%clk 0:01:36.4]} 24... Bxf4 {[%clk 0:01:48.9]} 25. Rxf4
{[%clk 0:01:32.5]} 25... Qe5 {[%clk 0:01:45.4]} 26. Bf1 {[%clk 0:01:25]} 26...
Qxd5 {[%clk 0:01:09.1]} 27. Bxc4 {[%clk 0:01:21]} 27... bxc4 {[%clk 0:01:10]}
28. Qxa4 {[%clk 0:01:21.1]} 28... Rb8 {[%clk 0:01:09.4]} 29. Qxc4 {[%clk
0:00:51.5]} 29... Qxc4 {[%clk 0:01:08.6]} 30. Rxc4 {[%clk 0:00:52.4]} 30... Rxb2
{[%clk 0:01:09.5]} 31. Ra4 {[%clk 0:00:49.1]} 31... Kf8 {[%clk 0:01:07.9]} 32.
Ra7 {[%clk 0:00:43.9]} 32... Ke8 {[%clk 0:01:05.9]} 33. c4 {[%clk 0:00:28.5]}
33... Rc2 {[%clk 0:01:05.5]} 34. Ra4 {[%clk 0:00:28.6]} 34... Ke7 {[%clk
0:01:05.9]} 35. Kg2 {[%clk 0:00:29]} 35... Ke6 {[%clk 0:01:05.9]} 36. Kf3 {[%clk
0:00:29.4]} 36... Ke5 {[%clk 0:01:05.6]} 37. Ke3 {[%clk 0:00:25.3]} 37... Rc3+
{[%clk 0:01:00.9]} 38. Kd2 {[%clk 0:00:24.8]} 38... Kd4 {[%clk 0:01:00.7]} 39.
Ra7 {[%clk 0:00:19.2]} 39... Kxc4 {[%clk 0:00:45.9]} 40. Rxf7 {[%clk 0:00:18.4]}
40... Rxa3 {[%clk 0:00:45.7]} 41. Rf6 {[%clk 0:00:18.8]} 41... d5 {[%clk
0:00:46]} 42. Rxg6 {[%clk 0:00:18.7]} 42... d4 {[%clk 0:00:45.9]} 43. f4 {[%clk
0:00:19.1]} 43... Ra2+ {[%clk 0:00:46.2]} 44. Ke1 {[%clk 0:00:19.4]} 44... Kd3
{[%clk 0:00:46.5]} 45. f5 {[%clk 0:00:19.2]} 45... c4 {[%clk 0:00:45.8]} 46. f6
{[%clk 0:00:17.5]} 46... Ke3 {[%clk 0:00:41.1]} 47. Kf1 {[%clk 0:00:16.2]} 47...
c3 {[%clk 0:00:39.5]} 48. f7 {[%clk 0:00:15.6]} 48... Rf2+ {[%clk 0:00:39.4]}
0-1

[Event "*** Titled Tuesday Blitz"]
[Site "Chess.com"]
[Date "2020.05.12"]
[Round "4"]
[White "GM-2023"]
[Black "dennisodessa"]
[Result "0-1"]
[WhiteElo "2081"]
[BlackElo "2320"]
[TimeControl "180+1"]
[EndTime "10:39:06 PDT"]
[Termination "dennisodessa won on time"]

1. e4 {[%clk 0:03:00.9]} 1... e6 {[%clk 0:03:00.9]} 2. d4 {[%clk 0:03:00.2]}
2... d5 {[%clk 0:03:01.1]} 3. Nc3 {[%clk 0:03:00.6]} 3... Nc6 {[%clk 0:02:59.5]}
4. Bb5 {[%clk 0:02:57.6]} 4... dxe4 {[%clk 0:02:55.8]} 5. Nxe4 {[%clk
0:02:56.5]} 5... Qd5 {[%clk 0:02:56]} 6. Qe2 {[%clk 0:02:47.1]} 6... a6 {[%clk
0:02:56]} 7. c4 {[%clk 0:02:25.8]} 7... Qxd4 {[%clk 0:02:50.6]} 8. Bxc6+ {[%clk
0:01:57.2]} 8... bxc6 {[%clk 0:02:49.1]} 9. a3 {[%clk 0:01:54.3]} 9... Nf6
{[%clk 0:02:42.8]} 10. Nxf6+ {[%clk 0:01:53.9]} 10... Qxf6 {[%clk 0:02:43.7]}
11. Nf3 {[%clk 0:01:54.2]} 11... Bd6 {[%clk 0:02:39.3]} 12. c5 {[%clk 0:01:22]}
12... Bxc5 {[%clk 0:02:28]} 13. Qc4 {[%clk 0:01:21.6]} 13... Qe7 {[%clk
0:02:25.9]} 14. Bg5 {[%clk 0:01:11.8]} 14... f6 {[%clk 0:02:25.5]} 15. Rc1
{[%clk 0:00:57.2]} 15... fxg5 {[%clk 0:02:18]} 16. Qxc5 {[%clk 0:00:56.6]} 16...
Bd7 {[%clk 0:01:46.2]} 17. Nxg5 {[%clk 0:00:50.9]} 17... Rb8 {[%clk 0:01:25.1]}
18. b4 {[%clk 0:00:44.7]} 18... Rb5 {[%clk 0:01:18.6]} 19. Qxe7+ {[%clk
0:00:44.1]} 19... Kxe7 {[%clk 0:01:19.5]} 20. Ne4 {[%clk 0:00:44.6]} 20... a5
{[%clk 0:01:19.3]} 21. bxa5 {[%clk 0:00:14.4]} 21... Rxa5 {[%clk 0:01:20.2]} 22.
O-O {[%clk 0:00:12.9]} 22... Rxa3 {[%clk 0:01:20.1]} 23. Rfe1 {[%clk 0:00:09.8]}
23... Rha8 {[%clk 0:01:08.8]} 24. h3 {[%clk 0:00:03.7]} 24... Rd3 {[%clk
0:00:56.7]} 25. Nc5 {[%clk 0:00:03]} 25... Rd5 {[%clk 0:00:57.1]} 26. Ne4 {[%clk
0:00:02.7]} 26... h6 {[%clk 0:00:53.6]} 27. Kh2 {[%clk 0:00:02.9]} 27... Ra2
{[%clk 0:00:53.4]} 28. Kg1 {[%clk 0:00:02.2]} 28... Raa5 {[%clk 0:00:46.2]} 29.
Re3 {[%clk 0:00:02.3]} 29... g5 {[%clk 0:00:34.8]} 30. Rce1 {[%clk 0:00:03.2]}
30... c5 {[%clk 0:00:31.6]} 31. Nc3 {[%clk 0:00:03.1]} 31... Rd4 {[%clk
0:00:31.3]} 32. Ne4 {[%clk 0:00:02.4]} 32... c4 {[%clk 0:00:31.3]} 33. Nc3
{[%clk 0:00:02.1]} 33... Ra3 {[%clk 0:00:28.5]} 34. Kh2 {[%clk 0:00:01.1]} 34...
Rd3 {[%clk 0:00:27.3]} 35. Kg3 {[%clk 0:00:01.1]} 35... Raxc3 {[%clk 0:00:26.8]}
0-1